bitfinex/quotes_ETHUSD_20250620
["timestamp","ask_amount","ask_price","bid_price","bid_amount"]
[1750394859309,20.91786,2511.5,2511.4,3.98184279]
[1750394859610,21.2886658,2511.5,2511.4,3.98184279]
[1750394860677,20.91786,2511.5,2511.4,3.98184279]
[1750394860877,21.28868626,2511.5,2511.4,3.98184279]
[1750394862116,21.28867727,2511.5,2511.4,3.98184279]
[1750394862316,21.28869131,2511.5,2511.4,3.98184279]
[1750394862813,21.28868932,2511.5,2511.4,3.98184279]
[1750394863015,21.28868995,2511.5,2511.4,3.98184279]
[1750394863813,21.28869249,2511.5,2511.4,3.98184279]
[1750394865324,10.0,2511.4,2511.3,3.98193639]
[1750394865619,0.0606,2511.1,2510.9,3.9826357]
[1750394865794,0.0606,2511.1,2511.0,3.9824771]
[1750394865994,8.56480643,2511.1,2511.0,3.9824771]
[1750394866196,8.62540643,2511.1,2511.0,3.9824771]
[1750394867135,18.62540643,2511.1,2511.0,3.9824771]
[1750394867286,20.56568707,2511.1,2511.0,3.9824771]
[1750394867926,20.19488064,2511.1,2511.0,3.9824771]
[1750394868112,20.56569257,2511.1,2511.0,3.9824771]
[1750394869142,18.56481193,2511.1,2511.0,3.9824771]
[1750394869310,18.62541193,2511.1,2511.0,3.9824771]
[1750394869507,18.62514619,2511.1,2511.0,3.9824771]
[1750394869708,18.62514619,2511.1,2510.5,3.98326995]
[1750394869709,0.0606,2511.0,2510.5,3.9831124]
[1750394869917,0.0606,2511.0,2510.9,3.98252792]
[1750394870229,8.87256391,2511.0,2510.9,3.98252792]
[1750394870420,6.93495929,2511.0,2510.9,3.98252792]
[1750394870815,6.5646,2511.0,2510.9,3.98252792]
[1750394871023,6.93495026,2511.0,2510.9,3.98252792]
[1750394871240,6.5646,2511.0,2510.9,3.98252792]
[1750394871435,6.93493989,2511.0,2510.9,3.98252792]
[1750394872936,6.93484651,2511.0,2510.9,3.98252792]
[1750394873834,6.93478384,2511.0,2510.9,3.98252792]
[1750394874408,0.0604,2510.9,2510.7,3.98283784]
[1750394874741,6.5644,2510.8,2510.7,3.98283784]
[1750394874912,6.5644,2510.8,2510.3,3.98347829]
[1750394874913,0.0604,2510.6,2510.4,3.98331841]
[1750394875094,18.2534,2510.5,2510.4,3.98331841]
[1750394876138,19.75625953,2510.5,2510.4,3.98331841]
[1750394876639,0.0604,2510.4,2510.3,3.98350947]
[1750394876841,0.0604,2510.4,2510.2,3.98366065]
[1750394877039,7.3353,2510.3,2510.2,3.98366065]
[1750394877246,17.2749,2510.3,2510.1,3.98378154]
[1750394877538,17.2749,2510.3,2510.2,3.98374631]
[1750394877539,21.07914591,2510.3,2510.2,3.98374631]
[1750394877745,10.0604,2510.2,2510.1,3.98387467]
[1750394877932,10.0604,2510.2,2510.0,3.98898544]
[1750394878134,6.5634,2510.1,2510.0,3.98898544]
[1750394878334,8.36838455,2510.1,2510.0,3.98906374]
[1750394878506,8.36838455,2510.1,2510.0,0.005]
[1750394879306,25.34008409,2510.1,2510.0,0.005]
[1750394879703,26.14078409,2510.1,2510.0,0.005]
[1750394880107,26.50981131,2510.1,2510.0,0.005]
[1750394881046,15.33476374,2510.0,2509.9,0.01]
[1750394881346,15.33476374,2510.0,2509.6,0.005]
[1750394881347,10.8611,2509.9,2509.6,0.005]
[1750394881547,10.8611,2509.9,2509.8,3.98438122]
[1750394881707,10.8098,2510.4,2510.1,3.98390502]
[1750394881916,10.0604,2510.2,2510.1,3.98390502]
[1750394882245,0.8098,2510.1,2509.6,0.005]
[1750394882447,10.0604,2510.2,2510.1,3.98390502]
[1750394882652,18.61949367,2510.2,2510.1,3.98390502]
[1750394883228,18.61909025,2510.2,2510.1,3.98390502]
[1750394883559,21.44694723,2510.2,2510.1,3.98390502]
[1750394883775,1.686,2510.2,2510.1,3.98390502]
[1750394884054,8.19,2510.2,2510.1,3.98390502]
[1750394884423,0.0604,2510.1,2509.7,3.98446592]
[1750394884769,0.0604,2510.1,2509.6,3.98966721]
[1750394884770,0.0604,2509.8,2509.6,0.005]
[1750394885073,18.2554,2509.7,2509.6,3.98969875]
[1750394888250,18.195,2509.7,2509.6,3.98969875]
[1750394888759,18.2554,2509.7,2509.6,3.98969875]
[1750394889773,18.195,2509.7,2509.6,3.98969875]
[1750394891287,10.0,2509.9,2509.8,3.98438122]
[1750394891594,1.63558588,2510.1,2510.0,3.98406374]
[1750394891733,0.0604,2510.3,2510.2,3.98374631]
[1750394891934,20.14253,2510.3,2510.2,3.98374631]
[1750394892138,3.63153,2510.3,2510.2,3.98374631]
[1750394892455,8.2564,2510.3,2510.2,3.98374631]
[1750394892974,18.2564,2510.3,2510.2,3.98374631]
[1750394893171,11.686,2510.3,2510.2,3.98374631]
[1750394893379,18.2574,2510.3,2510.2,3.98374631]
[1750394898194,10.36899718,2510.3,2510.2,3.98374631]
[1750394898343,19.74038549,2510.3,2510.2,3.98374631]
[1750394898543,19.74038699,2510.3,2510.2,3.98374631]
[1750394898744,19.37138972,2510.3,2510.2,3.98374631]
[1750394898982,10.0,2510.2,2510.0,3.98403068]
[1750394899191,10.0604,2510.2,2510.1,3.98388069]
[1750394899480,19.00117332,2510.2,2510.1,3.98388069]
[1750394899977,19.00129957,2510.2,2510.1,3.98388069]
[1750394900347,19.00136726,2510.2,2509.9,3.98414524]
[1750394900691,17.40126787,2510.1,2510.0,3.98406374]
[1750394900995,0.0604,2510.0,2509.8,3.98428347]
[1750394901282,16.506,2509.9,2509.8,3.98428347]
[1750394901797,16.506,2509.9,2509.7,3.98446138]
[1750394901798,10.0,2509.8,2509.7,3.98446138]
[1750394902078,14.43998243,2509.8,2509.7,3.98446138]
[1750394903043,14.80995519,2509.8,2509.7,3.98446138]
[1750394903676,14.74955519,2509.8,2509.7,3.98453998]
[1750394903877,8.56194041,2509.8,2509.7,3.98453998]
[1750394904093,2.05594041,2509.8,2509.7,3.98453998]
[1750394904306,10.057,2510.4,2510.0,3.98393676]
[1750394904457,0.36996549,2510.3,2510.2,3.98374631]
[1750394904643,8.56199273,2510.3,2510.2,3.98374631]
[1750394904843,10.497992,2510.3,2510.2,3.98374631]
[1750394905385,2.05617521,2510.3,2510.2,3.98374631]
[1750394905676,12.05617521,2510.3,2510.2,4.04314631]
[1750394905879,18.56217521,2510.3,2510.2,4.04314631]
[1750394906184,2.05617521,2510.3,2510.2,4.04314631]
[1750394906382,1.686,2510.3,2510.2,4.87634631]
[1750394906561,8.193,2510.3,2510.2,4.87634631]
[1750394907470,10.0,2510.7,2510.6,3.9831116]
[1750394907676,9.567,2510.8,2510.7,3.98295296]
[1750394907989,28.13125735,2510.8,2510.7,3.98295296]
[1750394908660,27.761,2510.8,2510.7,3.98295296]
[1750394908984,28.13096559,2510.8,2510.7,3.98295296]
[1750394909366,28.1309051,2510.8,2510.7,3.98295296]
[1750394910988,28.13067285,2510.8,2510.7,3.98295296]
[1750394911488,27.818,2510.8,2510.7,3.98295296]
[1750394911661,28.13068291,2510.8,2510.7,3.98295296]
[1750394912064,27.761,2510.8,2510.7,3.98295296]
[1750394912304,28.13067997,2510.8,2510.7,3.98295296]
[1750394912588,29.91829551,2510.8,2510.7,3.98295296]
[1750394913052,29.91826579,2510.8,2510.7,3.98295296]
[1750394915099,29.91820618,2510.8,2510.7,3.98295296]
[1750394915887,29.91824585,2510.8,2510.7,3.98295296]
[1750394917018,29.85824585,2510.8,2510.7,3.98295296]
[1750394917306,29.85822227,2510.8,2510.7,3.98295296]
[1750394917482,29.8582222,2510.8,2510.7,3.98295296]
[1750394917885,29.85822242,2510.8,2510.7,3.98295296]
[1750394918295,30.67442242,2510.8,2510.7,3.98295296]
[1750394918506,29.48772246,2510.8,2510.7,3.98295296]
[1750394918687,29.85729726,2510.8,2510.7,3.98295296]
[1750394919112,29.85729699,2510.8,2510.7,3.98295296]
[1750394919316,29.85729703,2510.8,2510.7,3.98295296]
[1750394919879,29.91429837,2510.8,2510.7,3.98295296]
[1750394920305,10.0,2510.7,2510.2,0.7662]
[1750394920646,6.562,2510.6,2510.5,3.98327026]
[1750394920779,13.04842984,2510.7,2510.6,3.9831116]
[1750394920981,19.92201212,2510.7,2510.6,3.9831116]
[1750394921813,13.36101212,2510.7,2510.6,3.9831116]
[1750394922021,21.55001212,2510.7,2510.6,3.9831116]
[1750394922185,21.60701212,2510.7,2510.6,3.9831116]
[1750394922615,21.60700103,2510.7,2510.6,3.9831116]
[1750394923126,21.60695782,2510.7,2510.5,3.98317795]
[1750394923435,13.71704343,2510.6,2510.5,3.98317795]
[1750394923742,13.71704358,2510.6,2510.5,3.98317795]
[1750394924702,21.90604374,2510.6,2510.5,3.98317795]
[1750394926330,21.53647235,2510.6,2510.5,3.98317795]
[1750394926536,21.90605112,2510.6,2510.5,3.98317795]
[1750394926944,21.90604995,2510.6,2510.5,3.98317795]
[1750394927146,21.90604998,2510.6,2510.5,3.98317795]
[1750394927946,21.84904998,2510.6,2510.5,3.98317795]
[1750394928161,18.55857763,2510.6,2510.5,3.98317795]
[1750394929099,18.55859661,2510.6,2510.5,3.98317795]
[1750394929300,18.55859327,2510.6,2510.5,3.98317795]
[1750394930639,18.55867484,2510.6,2510.5,3.98317795]
[1750394930845,19.37797484,2510.6,2510.5,3.98317795]
[1750394931014,22.57161531,2510.6,2510.5,3.98317795]
[1750394931218,22.57161531,2510.6,2510.4,3.98337531]
[1750394931219,0.057,2510.5,2510.4,3.98337531]
[1750394931414,17.34136299,2510.5,2510.3,3.98353416]
[1750394931730,17.34136299,2510.5,2510.0,0.7868]
[1750394931731,0.057,2510.2,2510.1,3.98385856]
[1750394931927,16.93064538,2510.2,2510.1,3.98385856]
[1750394932130,19.40254927,2510.2,2510.1,3.98385856]
[1750394933942,19.40276267,2510.2,2510.1,3.98385856]
[1750394934551,19.40276267,2510.2,2509.9,3.98410841]
[1750394934755,0.0608,2510.0,2509.9,3.98415056]
[1750394934945,10.0608,2509.9,2509.8,3.98428509]
[1750394935146,10.43107246,2509.9,2509.8,3.98428509]
[1750394935650,11.19347246,2509.9,2509.8,3.98428509]
[1750394936154,11.19348176,2509.9,2509.8,3.98428509]
[1750394936357,11.19348176,2509.9,2509.6,0.005]
[1750394936358,0.0608,2509.8,2509.6,0.005]
[1750394936532,6.504,2509.7,2509.6,3.98955798]
[1750394942258,10.0,2510.2,2509.6,4.04665798]
[1750394942569,8.6204898,2510.1,2510.0,3.98394884]
[1750394943372,8.62042466,2510.1,2510.0,3.98394884]
[1750394943686,8.55962466,2510.1,2510.0,3.98394884]
[1750394943886,0.36962466,2510.1,2510.0,3.98394884]
[1750394944069,18.55862466,2510.1,2510.0,3.98394884]
[1750394945359,18.189,2510.1,2510.0,3.98394884]
[1750394945684,18.55872584,2510.1,2510.0,3.98394884]
[1750394946081,18.55872837,2510.1,2510.0,3.98394884]
[1750394946790,18.55874813,2510.1,2510.0,3.98394884]
[1750394947086,8.55874813,2510.1,2510.0,3.98394884]
[1750394947387,0.36978407,2510.1,2510.0,3.98394884]
[1750394947589,8.19,2510.1,2510.0,3.98394884]
[1750394947790,10.8581,2510.4,2510.2,3.98359996]
[1750394947991,20.3418212,2510.3,2510.2,3.98359996]
[1750394948192,20.4026212,2510.3,2510.2,3.98359996]
[1750394948487,20.3418212,2510.3,2510.2,3.98359996]
[1750394948789,20.34192728,2510.3,2510.2,3.98359996]
[1750394948953,20.34192857,2510.3,2510.2,3.98359996]
[1750394949352,10.0,2510.2,2510.1,3.98374895]
[1750394949552,10.43074862,2510.2,2510.1,3.98374895]
[1750394949986,10.36994862,2510.2,2510.1,3.98374895]
[1750394950188,10.43074862,2510.2,2510.1,3.98374895]
[1750394950374,13.24542148,2510.2,2510.1,3.98374895]
[1750394950689,13.24546865,2510.2,2510.1,3.98374895]
[1750394950902,12.47106865,2510.2,2510.1,3.98374895]
[1750394951102,12.410345,2510.2,2510.1,3.98374895]
[1750394951308,10.37007214,2510.2,2510.1,3.98374895]
[1750394951604,10.03277995,2510.3,2510.2,3.98374631]
[1750394951804,10.40285319,2510.3,2510.2,3.98374631]
[1750394951969,20.34205319,2510.3,2510.2,3.98374631]
[1750394952307,18.559078,2510.3,2510.2,3.98374631]
[1750394953303,18.559078,2510.3,2510.2,4.04084631]
[1750394953507,18.559078,2510.3,2510.2,3.98374631]
[1750394954808,18.55918202,2510.3,2510.2,3.98374631]
[1750394954987,18.61998202,2510.3,2510.2,3.98374631]
[1750394955714,18.62009552,2510.3,2510.2,3.98374631]
[1750394955929,20.56404507,2510.3,2510.2,3.98374631]
[1750394956312,20.50323733,2510.3,2510.2,3.98374631]
[1750394956624,12.05528778,2510.3,2510.2,4.75824631]
[1750394956795,18.55928778,2510.3,2510.2,4.75824631]
[1750394957327,18.55932992,2510.3,2510.2,4.75824631]
[1750394957524,18.55943909,2510.3,2510.2,3.98374631]
[1750394958809,10.0608,2510.2,2510.1,3.98382096]
[1750394959122,12.99043295,2510.2,2510.1,3.98382096]
[1750394959432,6.87343909,2510.2,2510.1,3.98382096]
[1750394959997,6.93444621,2510.2,2510.1,3.98382096]
[1750394960398,6.93464257,2510.2,2510.1,3.98382096]
[1750394960608,16.93464104,2510.2,2510.1,3.98382096]
[1750394961312,16.5638,2510.2,2510.1,3.98382096]
[1750394961513,16.93464067,2510.2,2510.1,3.98382096]
[1750394961713,19.53868053,2510.2,2510.1,3.98382096]
[1750394963357,19.5386782,2510.2,2510.1,3.98382096]
[1750394963505,19.4778782,2510.2,2510.1,3.98382096]
[1750394965937,19.53803781,2510.2,2510.1,3.98382096]
[1750394966133,19.16713995,2510.2,2510.1,3.98382096]
[1750394966339,19.53803772,2510.2,2510.1,3.98382096]
[1750394966716,19.53808908,2510.2,2510.1,3.98382096]
[1750394966918,19.53808853,2510.2,2510.1,3.98382096]
[1750394968522,19.53808686,2510.2,2510.1,3.98382096]
[1750394969038,19.10703995,2510.2,2510.1,3.98382096]
[1750394969202,16.87394704,2510.2,2510.1,3.98382096]
[1750394969940,16.87405663,2510.2,2510.1,3.98382096]
[1750394970306,16.93415685,2510.2,2510.1,3.98382096]
[1750394970635,16.93414673,2510.2,2510.1,3.98382096]
[1750394971759,16.5631,2510.2,2510.1,3.98382096]
[1750394972086,10.37097509,2510.2,2510.1,3.98382096]
[1750394972224,18.186,2510.2,2510.1,4.81022096]
[1750394972423,18.55699523,2510.2,2510.1,5.60700204]
[1750394973763,18.55699523,2510.2,2510.1,4.81022096]
[1750394974055,18.55699523,2510.2,2510.1,3.98382096]
[1750394974264,18.61709523,2510.2,2510.1,3.98382096]
[1750394974459,18.55699523,2510.2,2510.1,3.98382096]
[1750394975637,18.61727595,2510.2,2510.1,3.98382096]
[1750394975839,21.25752347,2510.2,2510.1,3.98382096]
[1750394976426,21.2575248,2510.2,2510.1,3.98382096]
[1750394977468,21.25753295,2510.2,2510.1,3.98382096]
[1750394977763,21.25753324,2510.2,2510.1,3.98382096]
[1750394979259,21.25754482,2510.2,2510.1,3.98382096]
[1750394980262,20.88634755,2510.2,2510.1,3.98382096]
[1750394980467,21.25754719,2510.2,2510.1,3.98382096]
[1750394981463,21.25756119,2510.2,2510.1,3.98382096]
[1750394983638,21.25756817,2510.2,2510.1,3.98382096]
[1750394984076,21.25757304,2510.2,2510.1,3.98382096]
[1750394985176,21.25758233,2510.2,2510.1,3.98382096]
[1750394986143,21.25558459,2510.2,2510.1,3.98382096]
[1750394987076,21.25558449,2510.2,2510.1,3.98382096]
[1750394987277,21.2555845,2510.2,2510.1,3.98382096]
[1750394987473,20.88434755,2510.2,2510.1,3.98382096]
[1750394987773,21.25559566,2510.2,2510.1,3.98382096]
[1750394987934,21.25559487,2510.2,2510.1,3.98382096]
[1750394988985,21.25560306,2510.2,2510.1,3.98382096]
[1750394989184,21.25560476,2510.2,2510.1,3.98382096]
[1750394989382,21.25560359,2510.2,2510.1,3.98382096]
[1750394989993,21.25560515,2510.2,2510.1,3.98382096]
[1750394990643,21.25561409,2510.2,2510.1,3.98382096]
[1750394991790,20.88434755,2510.2,2510.1,3.98382096]
[1750394991994,21.25561242,2510.2,2510.1,3.98382096]
[1750394992596,21.25561997,2510.2,2510.1,3.98382096]
[1750394993849,21.25563082,2510.2,2510.1,3.98382096]
[1750394994665,21.25565094,2510.2,2510.1,3.98382096]
[1750394995391,21.25564245,2510.2,2510.1,3.98382096]
[1750394995579,21.25563608,2510.2,2510.1,3.98382096]
[1750394997096,21.25563503,2510.2,2510.1,3.98382096]
[1750394997664,21.25562988,2510.2,2510.1,3.98382096]
[1750394999692,18.61538233,2510.2,2510.1,3.98382096]
[1750394999992,18.55528233,2510.2,2510.1,3.98382096]
[1750395000486,10.3712764,2510.2,2510.1,3.98382096]
[1750395000674,18.5522764,2510.2,2510.1,3.98382096]
[1750395000902,10.3712764,2510.2,2510.1,3.98382096]
[1750395001084,18.5522764,2510.2,2510.1,3.98382096]
[1750395001884,18.55227329,2510.2,2510.1,3.98382096]
[1750395002290,18.60907329,2510.2,2510.1,3.98382096]
[1750395002788,18.60912012,2510.2,2510.1,3.98382096]
[1750395003149,18.60911997,2510.2,2510.1,3.98382096]
[1750395003488,10.0,2510.1,2510.0,3.98396593]
[1750395003790,10.37131997,2510.1,2510.0,3.98396593]
[1750395004690,10.37140731,2510.1,2510.0,3.98396593]
[1750395005304,10.37140731,2510.1,2509.9,3.98414998]
[1750395005305,10.37140731,2510.1,2509.8,4.76556217]
[1750395005460,6.86940731,2510.0,2509.9,3.98415268]
[1750395005786,6.92620731,2510.0,2509.9,3.98415268]
[1750395005996,6.92620032,2510.0,2509.9,3.98415268]
[1750395006168,6.92613629,2510.0,2509.9,3.98415268]
[1750395006365,0.0568,2509.9,2509.8,3.98428452]
[1750395006564,0.37133629,2509.9,2509.6,0.8266]
[1750395006771,6.86933629,2509.8,2509.6,0.005]
[1750395006967,2.05333629,2509.7,2509.6,3.98961838]
[1750395007172,2.05333629,2509.7,2509.6,0.005]
[1750395007490,2.11013629,2509.7,2509.6,0.005]
[1750395007897,13.93816364,2509.7,2509.6,0.005]
[1750395008799,17.92263524,2509.7,2509.6,0.005]
[1750395008998,17.92262429,2509.7,2509.6,0.005]
[1750395009694,18.74492429,2509.7,2509.6,0.005]
[1750395009896,18.74423489,2509.7,2509.6,0.005]
[1750395010059,19.14337131,2509.7,2509.6,0.005]
[1750395010800,19.69337131,2509.7,2509.6,0.005]
[1750395011197,19.69272492,2509.7,2509.6,0.005]
[1750395011371,19.69272175,2509.7,2509.6,0.005]
[1750395011755,65.09909269,2509.7,2509.6,0.005]
[1750395011959,25.43072481,2509.7,2509.6,0.005]
[1750395012161,40.58241355,2509.7,2509.6,0.005]
[1750395012387,40.21254999,2509.7,2509.6,0.005]
[1750395012595,40.58238083,2509.7,2509.6,0.005]
[1750395012910,40.58237761,2509.7,2509.6,0.005]
[1750395013266,41.13210711,2509.7,2509.6,0.005]
[1750395014165,30.64956713,2509.7,2509.6,0.005]
[1750395014500,36.59756748,2509.7,2509.6,0.005]
[1750395014796,28.40438482,2509.7,2509.6,0.005]
[1750395015365,35.37596746,2509.7,2509.6,0.005]
[1750395016203,35.37596951,2509.7,2509.6,0.005]
[1750395016370,28.87794734,2509.7,2509.6,0.005]
[1750395016705,27.40594734,2509.7,2509.6,0.005]
[1750395016902,31.39048732,2509.7,2509.6,0.005]
[1750395017495,27.40594734,2509.7,2509.6,0.005]
[1750395017694,31.39048732,2509.7,2509.6,0.005]
[1750395019126,32.19338732,2509.7,2509.6,0.005]
[1750395019424,32.74338732,2509.7,2509.6,0.005]
[1750395019600,13.0571478,2509.7,2509.6,0.005]
[1750395019802,32.19338732,2509.7,2509.6,0.005]
[1750395019977,32.74338732,2509.7,2509.6,0.005]
[1750395021189,32.37396687,2509.7,2509.6,0.005]
[1750395023512,25.87596687,2509.7,2509.6,0.005]
[1750395023817,32.37396687,2509.7,2509.6,0.005]
[1750395025294,32.37396687,2509.7,2509.4,0.23611568]
[1750395025295,15.32775754,2509.5,2509.4,0.23611568]
[1750395025494,42.3812294,2509.5,2509.4,0.23611568]
[1750395026307,38.39637186,2509.5,2509.4,0.23611568]
[1750395026925,23.52727232,2509.5,2509.4,0.23611568]
[1750395027118,31.70727232,2509.5,2509.4,0.23611568]
[1750395027820,27.754,2509.5,2509.4,4.22113201]
[1750395028287,27.754,2509.5,2509.4,0.23611568]
[1750395028495,27.754,2509.5,2509.4,4.22113201]
[1750395028496,19.94349282,2509.5,2509.4,4.22113201]
[1750395028694,28.12349282,2509.5,2509.4,0.23611568]
[1750395029093,28.12349282,2509.5,2509.4,4.22113201]
[1750395029391,28.12349282,2509.5,2509.4,0.23611568]
[1750395030220,28.12368875,2509.5,2509.4,0.23611568]
[1750395030417,39.0486605,2509.5,2509.4,0.23611568]
[1750395030625,39.1051605,2509.5,2509.4,0.23611568]
[1750395031218,39.10516082,2509.5,2509.4,0.23611568]
[1750395031622,32.07696128,2509.5,2509.4,0.23611568]
[1750395031787,32.13371922,2509.5,2509.4,0.23611568]
[1750395032183,32.13371875,2509.5,2509.4,0.23611568]
[1750395033020,32.1337187,2509.5,2509.4,0.23611568]
[1750395033219,32.0772187,2509.5,2509.4,0.23611568]
[1750395033529,32.07725249,2509.5,2509.4,0.23611568]
[1750395034235,32.13375249,2509.5,2509.4,0.23611568]
[1750395034738,32.13408265,2509.5,2509.4,0.23611568]
[1750395035551,36.11894019,2509.5,2509.4,0.23611568]
[1750395036207,36.11949031,2509.5,2509.4,0.23611568]
[1750395036739,36.93119031,2509.5,2509.4,0.23611568]
[1750395037737,37.48119031,2509.5,2509.4,0.23611568]
[1750395038314,37.48111753,2509.5,2509.4,0.23611568]
[1750395038611,37.48111623,2509.5,2509.4,0.23611568]
[1750395038808,37.48111722,2509.5,2509.4,0.23611568]
[1750395039232,3.98523593,2509.3,2509.0,0.218054]
[1750395039438,10.0,2509.1,2509.0,0.218054]
[1750395039628,16.86778736,2509.1,2509.0,0.218054]
[1750395040910,0.37078736,2509.1,2509.0,0.218054]
[1750395041125,6.86778736,2509.1,2509.0,0.218054]
[1750395041331,16.86778736,2509.1,2509.0,0.218054]
[1750395041503,16.86779735,2509.1,2509.0,0.218054]
[1750395042341,20.90979015,2509.1,2509.0,0.218054]
[1750395042541,16.92429735,2509.1,2509.0,0.218054]
[1750395042745,16.86779735,2509.1,2509.0,0.218054]
[1750395042931,17.71509735,2509.1,2509.0,0.218054]
[1750395043506,17.7150195,2509.1,2509.0,0.218054]
[1750395043949,16.9242195,2509.1,2509.0,0.218054]
[1750395044334,16.86767522,2509.1,2509.0,0.218054]
[1750395044948,16.86767501,2509.1,2509.0,0.218054]
[1750395045149,16.86767501,2509.1,2509.0,4.20370565]
[1750395045347,16.86767501,2509.1,2509.0,0.218054]
[1750395045538,19.30813179,2509.1,2509.0,0.218054]
[1750395045986,19.25163179,2509.1,2509.0,0.218054]
[1750395046114,24.63086944,2509.1,2509.0,0.218054]
[1750395046517,24.63073448,2509.1,2509.0,0.218054]
[1750395046813,20.93244168,2509.1,2509.0,0.218054]
[1750395047017,20.93246754,2509.1,2509.0,0.218054]
[1750395047214,24.97446034,2509.1,2509.0,0.218054]
[1750395047555,24.97447878,2509.1,2509.0,0.218054]
[1750395048434,24.97439135,2509.1,2509.0,0.218054]
[1750395048626,25.77659135,2509.1,2509.0,0.218054]
[1750395049216,32.74829089,2509.1,2509.0,0.218054]
[1750395049756,32.37782979,2509.1,2509.0,0.218054]
[1750395049959,32.74830954,2509.1,2509.0,0.218054]
[1750395050163,32.7483099,2509.1,2509.0,0.218054]
[1750395051358,33.2983099,2509.1,2509.0,0.218054]
[1750395051923,24.97441036,2509.1,2509.0,0.218054]
[1750395052126,31.9461099,2509.1,2509.0,0.218054]
[1750395052343,32.7109099,2509.1,2509.0,0.218054]
[1750395052523,33.26082517,2509.1,2509.0,0.218054]
[1750395052859,33.45479492,2509.1,2509.0,0.218054]
[1750395054224,33.45469608,2509.1,2509.0,0.218054]
[1750395054861,33.45469611,2509.1,2509.0,0.218054]
[1750395055039,33.45469085,2509.1,2509.0,0.218054]
[1750395055560,33.45465954,2509.1,2509.0,0.218054]
[1750395055992,3.98596938,2508.8,2508.7,0.005]
[1750395056163,28.67372897,2508.8,2508.7,0.005]
[1750395056375,21.32765079,2508.8,2508.7,0.005]
[1750395056524,10.36998187,2508.8,2508.7,0.005]
[1750395056729,18.5480006,2508.8,2508.7,0.005]
[1750395057376,32.46650171,2508.8,2508.7,0.005]
[1750395057535,33.29087304,2508.8,2508.7,0.005]
[1750395058239,33.29086066,2508.8,2508.7,0.005]
[1750395058439,33.84086066,2508.8,2508.7,0.005]
[1750395060483,63.01646066,2508.8,2508.7,0.005]
[1750395060778,63.77806066,2508.8,2508.7,0.005]
[1750395061156,63.77794646,2508.8,2508.7,0.005]
[1750395062239,50.30830404,2508.8,2508.7,0.005]
[1750395062447,63.77678259,2508.8,2508.7,0.005]
[1750395062641,21.06381205,2508.8,2508.7,0.005]
[1750395062846,3.98529653,2509.3,2508.7,0.005]
[1750395062847,1.68,2509.3,2508.7,0.8861]
[1750395063152,6.97169954,2509.0,2508.7,4.87209745]
[1750395063372,6.88080715,2508.9,2508.8,3.98589957]
[1750395063575,6.88088522,2508.9,2508.8,3.98589957]
[1750395063737,16.88088588,2508.9,2508.8,3.98589957]
[1750395063943,16.88088588,2508.9,2508.7,4.81557093]
[1750395064140,11.68,2508.9,2508.8,4.04256938]
[1750395064445,18.56487145,2508.9,2508.8,3.98596938]
[1750395064796,18.56486953,2508.9,2508.8,3.98596938]
[1750395065795,18.56486953,2508.9,2508.8,4.04256938]
[1750395065955,18.56506554,2508.9,2508.8,4.04256938]
[1750395067491,18.56511281,2508.9,2508.8,4.04256938]
[1750395067693,18.56511314,2508.9,2508.8,4.04256938]
[1750395067994,18.56511208,2508.9,2508.8,4.04256938]
[1750395068175,18.56511449,2508.9,2508.8,4.04256938]
[1750395068877,18.56511449,2508.9,2508.8,4.83476938]
[1750395069189,12.05013481,2508.9,2508.8,5.71735341]
[1750395069577,1.68,2508.9,2508.8,5.71735341]
[1750395069888,8.192,2508.9,2508.8,5.71735341]
[1750395070750,6.512,2509.0,2508.9,0.8488]
[1750395070962,1.68,2509.4,2509.3,4.77737514]
[1750395071285,2.0499182,2509.4,2509.3,4.83397514]
[1750395071665,8.5619182,2509.4,2509.3,4.83397514]
[1750395071869,18.192,2509.4,2509.3,4.83397514]
[1750395072055,18.56192135,2509.4,2509.3,4.83397514]
[1750395072697,18.56187824,2509.4,2509.3,4.83397514]
[1750395073088,18.192,2509.4,2509.3,5.71590273]
[1750395073462,1.68,2509.4,2509.3,5.71590273]
[1750395073668,8.19,2509.4,2509.3,5.71590273]
[1750395073872,10.0,2510.0,2509.9,4.7741814]
[1750395074177,8.55970123,2510.0,2509.9,4.7741814]
[1750395074384,18.5596278,2510.0,2509.9,4.7741814]
[1750395074697,18.55962698,2510.0,2509.9,4.7741814]
[1750395074906,18.55963039,2510.0,2509.9,4.7741814]
[1750395075709,21.37329343,2510.0,2509.7,3.98453998]
[1750395075865,7.34132993,2509.9,2509.6,4.77477849]
[1750395076178,10.0,2509.7,2509.6,4.77477849]
[1750395079416,17.02849954,2509.7,2508.8,0.819]
[1750395079579,6.97169954,2509.4,2509.3,3.98517045]
[1750395079779,25.15769954,2509.4,2509.3,3.98517045]
[1750395082201,10.0568,2509.3,2509.1,3.98539466]
[1750395082409,15.15769954,2509.4,2509.1,3.98539466]
[1750395082410,16.508,2509.2,2509.1,3.98539466]
[1750395084626,16.508,2509.2,2509.0,3.98556595]
[1750395084834,10.0,2509.0,2508.8,0.819]
[1750395085002,15.15669954,2508.9,2508.7,0.005]
[1750395085209,15.21779954,2508.9,2508.7,0.005]
[1750395085588,25.21779954,2508.9,2508.8,3.98596938]
[1750395085938,18.185,2508.9,2508.8,3.98596938]
[1750395086445,10.0,2508.9,2508.8,3.98596938]
[1750395086655,10.0,2508.9,2508.8,5.72087552]
[1750395086656,11.679,2508.9,2508.8,5.72087552]
[1750395086931,18.19,2508.9,2508.8,5.72087552]
[1750395089528,18.19,2508.9,2508.8,5.66067552]
[1750395089689,18.19,2508.9,2508.8,4.78586938]
[1750395089890,18.19,2508.9,2508.8,4.84606938]
[1750395090809,18.19,2508.9,2508.8,4.78586938]
[1750395091492,18.19,2508.9,2508.8,3.98596938]
[1750395095726,18.55984582,2508.9,2508.8,3.98596938]
[1750395095923,18.62094582,2508.9,2508.8,3.98596938]
[1750395096107,10.0611,2508.8,2508.7,0.005]
[1750395096307,10.43094582,2508.8,2508.7,0.005]
[1750395096632,15.1771152,2508.8,2508.7,0.005]
[1750395096836,18.86549729,2508.8,2508.7,0.005]
[1750395097436,14.50968209,2508.8,2508.7,0.005]
[1750395097600,14.87953115,2508.8,2508.7,0.005]
[1750395097929,14.87952681,2508.8,2508.7,0.005]
[1750395098138,14.87937769,2508.8,2508.7,0.005]
[1750395098297,14.87937441,2508.8,2508.7,0.005]
[1750395098500,14.87937316,2508.8,2508.7,0.005]
[1750395098829,14.87937279,2508.8,2508.7,0.005]
[1750395099316,4.87937279,2508.8,2508.7,0.005]